Cogmind - Beta 10.2 @@@ ROGUE MODE // 2020.11.10 @ 21:31:25 // Halloween2020/ForbiddenLore Player: Ty Piggbottom Result: Self-destructed Performance ------------- Evolutions (2) 1000 Regions Visited (5) 1000 Robots Destroyed (67) 335 Value Destroyed (1071) 1071 Prototype IDs (25) 500 Alien Tech Used (0) 0 Bonus (-262) -262 TOTAL SCORE: 3644 Bonus ------- Aligned with FarCom 300 Friendly Fire -562 Cogmind --------- Core Integrity 479/550 Matter 300/300 Energy 89/100 System Corruption 0% Temperature Cool (173) Movement Rolling (110) Ox1 Location -8/Materials Parts ------- > --- POWER (1) -------- (None) > --- PROPULSION (3) --- Compact Wheel > --- UTILITY (5) ------ High-capacity Storage Unit Signal Interpreter Transport Network Coupler Hacking Suite > --- WEAPON (2) ------- (None) > --- INVENTORY (12) --- Improved Heat Sink Large Storage Unit Sensor Array Experimental Sensor Array Transmission Jammer Hacking Suite Reclamation Unit Sensor Drone Bay (20/20) Katana Makeshift Sword Longsword +1 Peak State ------------ > --- POWER ------------ Light Nuclear Core > --- PROPULSION ------- Wheel Compact Wheel Compact Wheel > --- UTILITY ---------- High-capacity Storage Unit Experimental Sensor Array Signal Interpreter Transport Network Coupler Sensor Drone Bay > --- WEAPON ----------- Electrolaser Electrolaser > --- INVENTORY -------- Improved Heat Sink Large Storage Unit Sensor Array Hacking Suite Hacking Suite System Shield Reclamation Unit Katana Makeshift Sword Longsword +1 [Rating: 32] Favorites ----------- Power Light Nuclear Core Engine Ion Engine Power Core Light Nuclear Core Propulsion Compact Wheel Leg Aluminum Leg Wheel Compact Wheel Utility Signal Interpreter Device Improved Terrain Scanner Storage High-capacity Storage Unit Processor Signal Interpreter Hackware System Shield Weapon Assault Rifle Energy Gun Particle Gun Energy Cannon Beam Cannon Ballistic Gun Assault Rifle Launcher Grenade Launcher Special Weapon Mining Laser Slashing Weapon Longsword +1 Build | -11 -10 -10 -10 -9 -8 ------- Run | Scr Mat Min Exi Min Mat Slots Evolved 4 | . . . . . 4 Power . | . . . . . . Propulsion 1 | . . . . . 1 Utility 3 | . . . . . 3 Weapon . | . . . . . . Parts Attached 66 | 10 11 18 1 13 13 Power 3 | 1 . 2 . . . Engine 1 | 1 . . . . . Core 2 | . . 2 . . . Reactor . | . . . . . . Propulsion 16 | 3 . 7 . 5 1 Treads . | . . . . . . Leg 3 | . . 2 . 1 . Wheel 13 | 3 . 5 . 4 1 Hover . | . . . . . . Flight . | . . . . . . Utility 20 | 4 4 . . 4 8 Device 7 | 2 . . . 2 3 Storage 7 | 1 2 . . 2 2 Processor 4 | 1 2 . . . 1 Hackware 2 | . . . . . 2 Protection . | . . . . . . Artifact . | . . . . . . Weapon 27 | 2 7 9 1 4 4 Energy Gun 6 | 1 1 1 . . 3 Energy Cannon 5 | . 1 4 . . . Ballistic Gun 7 | 1 1 3 . 2 . Ballistic Cannon . | . . . . . . Launcher 4 | . 4 . . . . Special Weapon 1 | . . 1 . . . Impact Weapon . | . . . . . . Slashing Weapon 4 | . . . 1 2 1 Piercing Weapon . | . . . . . . Special Melee Weapon . | . . . . . . Unidentified Prototypes 2 | . . . . 2 . Parts Lost 19 | . . 11 . 2 6 Power 3 | . . 2 . . 1 Propulsion 7 | . . 3 . 2 2 Utility 1 | . . . . . 1 Weapon 8 | . . 6 . . 2 Highest Loss Streak 6 | . . 5 . 2 6 Average Slot Usage (%) 97 | . 100 96 100 97 94 Engine 3 | . 14 1 . . . Core 10 | . . 12 14 14 9 Wheel 26 | . 28 25 28 27 25 Storage 12 | . 11 14 14 13 9 Processor 14 | . 14 14 14 14 18 Energy Gun 6 | . 13 10 . . 9 Energy Cannon 4 | . 5 10 . . . Ballistic Gun 8 | . 3 4 28 11 . Launcher 1 | . 5 . . . . Slashing Weapon 5 | . . . . 14 7 Naked Turns . | . . . . . . Heaviest Build 44 | 14 43 43 41 42 44 Greatest Support 42 | 26 20 32 32 32 42 Greatest Overweight (x) 13 | . 2 13 1 2 1 Average Overweight (x) 1 | . 1 1 1 . . Largest Inventory Capacity 18 | 6 12 12 12 12 18 Average Capacity 11 | 5 10 12 12 11 12 Most Carried 12 | 4 12 12 11 12 12 Average Carried 9 | 1 9 9 10 10 10 Final Capacity 12 | 4 12 12 12 12 12 Final Carried 12 | 4 12 10 9 11 11 Class Distribution -------------------- 54% | Mutant 45% | Scavenger-Mutant Dominant Class ---------------- Mutant | -10/Materials Scavenger-Mutant | -10/Mines Scavenger-Mutant | -10/Exiles Mutant | -9/Mines Scavenger-Mutant | -8/Materials Resources | -11 -10 -10 -10 -9 -8 ----------- Run | Scr Mat Min Exi Min Mat Matter Collected 1122 | 312 237 307 . 146 120 Remotely 112 | 112 . . . . . Salvage Created 2879 | 108 634 548 . 1176 413 Parts 151 | 10 48 22 . 46 25 Haulers Intercepted 3 | . 2 . . . 1 Recyclers Shooed 8 | . 2 3 . 1 2 Parts Field Recycled . | . . . . . . Retrieved Matter . | . . . . . . Parts Self-Destructed . | . . . . . . Prevented . | . . . . . . Kills | -11 -10 -10 -10 -9 -8 ------- Run | Scr Mat Min Exi Min Mat Combat Hostiles Destroyed 25 | . 5 8 . 7 5 Melee 8 | . . . . 7 1 Guns 9 | . 2 3 . . 4 Cannons 6 | . 2 4 . . . AOE 2 | . 1 1 . . . Classes Destroyed 11 | 2 6 1 . 1 1 Worker 1 | . 1 . . . . Builder 5 | . 1 1 . 1 2 Tunneler 5 | 2 . . . 3 . Hauler 3 | . 2 . . . 1 Recycler 21 | 1 3 4 . 11 2 Mechanic 1 | . . . . . 1 Operator 3 | . 3 . . . . Watcher 2 | . 2 . . . . Swarmer 8 | . . 1 . 4 3 Grunt 16 | . 5 7 . 2 2 Duelist 1 | . . . . 1 . Thug 1 | . . . . 1 . Best Kill Streak 6 | 2 3 3 . 6 5 Combat Bots Only 3 | . 2 3 . 3 3 Max Kills in Single Turn 2 | 1 2 1 . 1 1 Gunslinging . | . . . . . . Exploded 1 | . 1 1 . . . Melee 1 | . . . . 1 1 Uniques/NPCs Destroyed . | . . . . . . Combat | -11 -10 -10 -10 -9 -8 -------- Run | Scr Mat Min Exi Min Mat Damage Taken 1413 | . 107 713 . 186 407 Core 285 | . 18 129 . 67 71 Absorbed by Shields . | . . . . . . Core Remaining (%) 57 | 100 . . . 14 . Volleys Fired 125 | 4 39 54 . . 28 Largest 2 | 2 2 2 . . 1 Hottest 125 | 60 100 125 . . 63 Shots Fired 193 | 8 66 91 . . 28 Gun 129 | 8 35 58 . . 28 Cannon 42 | . 21 21 . . . Launcher 16 | . 10 6 . . . Special 6 | . . 6 . . . Kinetic 61 | 4 9 48 . . . Thermal 84 | . 21 35 . . 28 Explosive 16 | . 10 6 . . . Electromagnetic 32 | 4 26 2 . . . Robot Hit Streak 12 | 2 6 12 . . 3 Robot Miss Streak 5 | 3 3 5 . . 3 Penetration Max . | . . . . . . Secondary Targets . | . . . . . . Shots Hit Robots 153 | 4 29 50 . 47 23 Core Hits 90 | 4 23 24 . 24 15 Critical Hits 3 | . . . . 2 1 Critical Kills 2 | . . . . 1 1 Critical Parts Destroyed . | . . . . . . Melee Attacks 58 | . . . . 48 10 Impact . | . . . . . . Slashing 58 | . . . . 48 10 Piercing . | . . . . . . Sneak Attacks 24 | . . . . 21 3 Combat Hostiles 1 | . . . . 1 . Follow-up Attacks . | . . . . . . Damage Inflicted 6462 | 82 720 814 . 3889 957 Guns 995 | 82 272 313 . . 328 Cannons 459 | . 229 230 . . . Explosions 490 | . 219 271 . . . Melee 4518 | . . . . 3889 629 Ramming . | . . . . . . Kinetic 359 | 28 93 238 . . . Thermal 862 | . 229 305 . . 328 Explosive 490 | . 219 271 . . . Electromagnetic 233 | 54 179 . . . . Impact . | . . . . . . Slashing 4518 | . . . . 3889 629 Piercing . | . . . . . . Highest Corruption . | . . . . . . Average Corruption . | . . . . . . Corruption Purged . | . . . . . . Overload Shots . | . . . . . . Overflow Damage 1347 | . . 7 . 1207 133 Projectiles . | . . . . . . Explosions 7 | . . 7 . . . Melee 1340 | . . . . 1207 133 Knockbacks . | . . . . . . Impact . | . . . . . . Kinetic . | . . . . . . Secondary . | . . . . . . Self-Inflicted Damage 34 | . . 34 . . . Shots 2 | . . 2 . . . Rammed . | . . . . . . Targets Rammed . | . . . . . . Kicked . | . . . . . . Crushed . | . . . . . . Highest Temperature 258 | . 237 258 . . 204 Average Temperature 54 | . 51 51 . . 67 Received Heat Transfer 438 | . 48 291 . . 99 Siege Activations . | . . . . . . Robots Corrupted . | . . . . . . Combat Hostiles . | . . . . . . Parts Fried 1 | . 1 . . . . Impact Corruptions . | . . . . . . Robots Melted . | . . . . . . Combat Hostiles . | . . . . . . Parts Melted . | . . . . . . Heat Transferred 1850 | . 481 666 . . 703 Parts Sabotaged . | . . . . . . Parts Stolen . | . . . . . . Parts Stripped . | . . . . . . Power Chain Reactions 1 | . 1 . . . . Missiles Intercepted . | . . . . . . Alert | -11 -10 -10 -10 -9 -8 ------- Run | Scr Mat Min Exi Min Mat Peak Influence 215 | 15 152 190 . 150 215 Initial 33 | . 9 5 . . 33 Average 38 | 7 40 35 . 32 95 Maximum Alert Level 1 | . . . . . 1 Low Security (%) 99 | 100 100 100 . 100 95 Level 1 . | . . . . . 4 Level 2 . | . . . . . . Level 3 . | . . . . . . Level 4 . | . . . . . . Level 5 . | . . . . . . High Security . | . . . . . . Max Security . | . . . . . . Squads Dispatched 4 | . 4 . . . . Investigation 1 | . 1 . . . . Extermination . | . . . . . . Reinforcement 3 | . 3 . . . . Assault . | . . . . . . Garrison . | . . . . . . Intercept . | . . . . . . Construction Impeded . | . . . . . . Haulers Reinforced . | . . . . . . Stealth | -11 -10 -10 -10 -9 -8 --------- Run | Scr Mat Min Exi Min Mat Distress Signals 2 | . 1 . . . 1 Communications Jammed . | . . . . . . Distress Signals . | . . . . . . Times Spotted 40 | . 10 12 . 9 9 Peak Tracking Total 5 | . 2 3 . 4 5 Tactical Retreats 6 | . . 3 . 2 1 Traps | -11 -10 -10 -10 -9 -8 ------- Run | Scr Mat Min Exi Min Mat Traps Triggered 1 | . 1 . . . . Indirectly . | . . . . . . Trap Hack Attempts . | . . . . . . Triggered . | . . . . . . Disarmed . | . . . . . . Reprogrammed . | . . . . . . Reused . | . . . . . . Traps Extracted . | . . . . . . Installed . | . . . . . . Triggered . | . . . . . . Machines | -11 -10 -10 -10 -9 -8 ---------- Run | Scr Mat Min Exi Min Mat Machines Disabled 2 | . 1 1 . . . Max in Single Turn 1 | . 1 1 . . . Machines Sabotaged . | . . . . . . Garrisons Compromised . | . . . . . . Overloaded Fab Kills . | . . . . . . Fab Network Shutdowns . | . . . . . . Hacking | -11 -10 -10 -10 -9 -8 --------- Run | Scr Mat Min Exi Min Mat Machines Accessed 14 | . 7 . 5 1 1 Terminals 6 | . 5 . . . 1 Fabricators . | . . . . . . Repair Stations . | . . . . . . Recycling Units 2 | . 2 . . . . Scanalyzers . | . . . . . . Garrison Access . | . . . . . . Total Hacks 74 | . 17 . 50 1 6 Successful 66 | . 11 . 50 1 4 Failed 8 | . 6 . . . 2 Catastrophic 1 | . 1 . . . . Database Lockouts . | . . . . . . Manual 15 | . 9 . 1 1 4 Terminals 21 | . 15 . . . 6 Fabricators . | . . . . . . Repair Stations . | . . . . . . Recycling Units 2 | . 2 . . . . Scanalyzers . | . . . . . . Garrison Access . | . . . . . . Terminal Hacks 58 | . 4 . 50 1 3 Record 49 | . . . 49 . . Robot Analysis 1 | . 1 . . . . Open Door 1 | . . . . 1 . Terminal Index 2 | . 1 . . . 1 Locate Traps 2 | . 1 . . . 1 Zone Layout 2 | . 1 . . . 1 EX-Prototype ID Bank 1 | . . . 1 . . Fabricator Hacks . | . . . . . . Repair Station Hacks . | . . . . . . Recycling Unit Hacks 2 | . 2 . . . . Report Inventory 2 | . 2 . . . . Scanalyzer . | . . . . . . Garrison Access Hacks . | . . . . . . Unauthorized Hacks 6 | . 5 . . . 1 Terminals 6 | . 5 . . . 1 Assimilate 2 | . 2 . . . . Botnet 4 | . 3 . . . 1 Fabricators . | . . . . . . Repair Stations . | . . . . . . Recycling Units . | . . . . . . Scanalyzers . | . . . . . . Garrison Access . | . . . . . . Data Cores Recovered . | . . . . . . Used . | . . . . . . Hacking Detections 7 | . 6 . . . 1 Full Trace Events . | . . . . . . Feedback Events . | . . . . . . Feedback Blocked . | . . . . . . Robot Schematics Acquired . | . . . . . . Robots Built . | . . . . . . Matter . | . . . . . . Time . | . . . . . . Total Robot Build Rating . | . . . . . . Part Schematics Acquired . | . . . . . . Parts Built . | . . . . . . Matter . | . . . . . . Time . | . . . . . . Total Part Build Rating . | . . . . . . Parts Repaired . | . . . . . . Time . | . . . . . . Parts Recycled . | . . . . . . Recycled Matter . | . . . . . . Retrieved Matter . | . . . . . . Retrieved Components . | . . . . . . Parts Scanalyzed . | . . . . . . Part Schematics Acquired . | . . . . . . Parts Damaged . | . . . . . . Bothacking | -11 -10 -10 -10 -9 -8 ------------ Run | Scr Mat Min Exi Min Mat Used RIF Installer . | . . . . . . Robots Hacked . | . . . . . . Non-combat . | . . . . . . Combat . | . . . . . . Robot Hacks Applied . | . . . . . . Relay Couplers Released . | . . . . . . Robots Rewired . | . . . . . . Allies Hacked . | . . . . . . Hacks Repelled . | . . . . . . Allies | -11 -10 -10 -10 -9 -8 -------- Run | Scr Mat Min Exi Min Mat Total Allies 1 | . . 1 . . . Largest Group 1 | . . 1 . . . Highest-Rated Group 31 | . . 31 . . . Highest-Rated Ally 31 | . . 31 . . . Total Orders 4 | . . . . 4 . ROAM 1 | . . . . 1 . EXPLORE 2 | . . . . 2 . RETURN 1 | . . . . 1 . Ally Attacks . | . . . . . . Total Damage . | . . . . . . Kills . | . . . . . . Allies Corrupted . | . . . . . . Allies Melted . | . . . . . . Intel | -11 -10 -10 -10 -9 -8 ------- Run | Scr Mat Min Exi Min Mat Robot Analysis Total 1 | . 1 . . . . Derelict Logs Recovered 2 | . . 1 . 1 . Drone Launches 1 | . . . . 1 . Drone Recoveries 1 | . . . . 1 . Exploration | -11 -10 -10 -10 -9 -8 ------------- Run | Scr Mat Min Exi Min Mat Turns Passed 5737 | 82 1185 1647 580 1917 326 Spaces Moved 4145 | 59 975 1133 525 1328 125 Core 6 | 1 . 5 . . . Treads . | . . . . . . Legs 36 | . . 36 . . . Wheels 4103 | 58 975 1092 525 1328 125 Hover . | . . . . . . Flight . | . . . . . . Fastest Speed 50 | 50 80 100 110 100 93 Average Speed 107 | 86 96 115 110 109 102 Slowest Speed 700 | 100 100 700 110 120 110 Overloaded Moves . | . . . . . . Propulsion Burnouts . | . . . . . . Robots Hopped . | . . . . . . Cave-ins Triggered . | . . . . . . Exploration Rate (%) 67 | 4 98 99 92 100 11 Regions Visited 5 Branch Regions 3 Pre-discovered Areas 1 | . . . 1 . . Known Exits Taken 4 | . 1 1 1 1 . Unknown Exits Taken 1 | 1 . . . . . Scrap Searched 3 | . . 2 . 1 . Spaces Dug 7 | . . 6 . . 1 Terrain Destroyed 148 | . 111 36 . . 1 Melee 1 | . . . . . 1 Projectile 6 | . . 6 . . . AOE 141 | . 111 30 . . . Terrain Rammed . | . . . . . . Walls Destroyed . | . . . . . . Machines Disabled . | . . . . . . Actions | -11 -10 -10 -10 -9 -8 --------- Run | Scr Mat Min Exi Min Mat Total 5150 | 78 1153 1370 528 1737 284 Wait 698 | . 115 155 . 328 100 Move 4140 | 58 974 1132 524 1327 125 Hop . | . . . . . . Pick Up 33 | 3 10 6 1 11 2 Fast Attach 25 | 8 2 6 . 6 3 Attach 16 | 1 . 5 . 4 6 Detach 11 | 2 1 . . 4 4 Swap 25 | 1 9 7 1 3 4 Drop 19 | 1 3 5 2 6 2 Fire 125 | 4 39 54 . . 28 Melee 58 | . . . . 48 10 Ram . | . . . . . . Kick . | . . . . . . Crush . | . . . . . . Escape Stasis . | . . . . . . Rewire . | . . . . . . Trap . | . . . . . . Miscellaneous . | . . . . . . Route ------- -11/Scrapyard -10/Materials (discovered 4 exits: *Mat x3 / *Min) -10/Mines (discovered 3 exits: *Mat x2 / *Exi) -10/Exiles (discovered 2 exits: *Min x2) -9/Mines (discovered 2 exits: *Mat x2) -8/Materials History --------- Turn | Location | Event 10 | -11/Scrapyard | Discovered new exit (range 15) 83 | -11/Scrapyard | Entered Materials 316 | -10/Materials | Build established: Mutant 497 | -10/Materials | Discovered new exit (range 12) 534 | -10/Materials | Identified exit to Materials 561 | -10/Materials | Discovered new exit (range 8) 569 | -10/Materials | Identified exit to Mines 914 | -10/Materials | Discovered exit to Materials (range 16) 987 | -10/Materials | Discovered exit to Materials (range 16) 1268 | -10/Materials | Entered Mines 1323 | -10/Mines | Lost 4 parts (2n2w) 1356 | -10/Mines | Met a Derelict bent on vengeance 1783 | -10/Mines | Build established: Scavenger-Mutant 1855 | -10/Mines | Discovered exit to Materials (range 15) 1865 | -10/Mines | Assembled infested the area 2233 | -10/Mines | Discovered exit to Materials (range 15) 2250 | -10/Mines | Received a Mining Laser from a helpful Derelict 2255 | -10/Mines | Discovered new exit (range 3) 2259 | -10/Mines | Identified exit to Exiles 2450 | -10/Mines | Found a damaged Exp. Sensor Array with a note attached 2452 | -10/Mines | Found Prototype Device 2690 | -10/Mines | Core integrity fell below 50% 2740 | -10/Mines | Lost 5 parts (1p1n3w) 2915 | -10/Mines | Entered Exiles 2916 | -10/Exiles | Identified exit to Mines 2947 | -10/Exiles | Met 8R-AWN 2965 | -10/Exiles | Met EX-HEX 2999 | -10/Exiles | Met EX-BIN 3016 | -10/Exiles | Aligned with FarCom system 3017 | -10/Exiles | Given EX-Vault access code 3080 | -10/Exiles | Opened EX-Vault 3102 | -10/Exiles | Found Longsword +1 3125 | -10/Exiles | Warned to stay clear of 0b10 Research branches 3158 | -10/Exiles | Met EX-DEC 3167 | -10/Exiles | Learned location of Zion (-7) 3238 | -10/Exiles | Visited The Gauntlet 3495 | -10/Exiles | Left Exiles lab with Longsword +1 3495 | -10/Exiles | Entered Mines 3594 | -9/Mines | Discovered new exit (range 10) 3604 | -9/Mines | Identified exit to Materials 3814 | -9/Mines | Core integrity fell below 20% 3927 | -9/Mines | Discovered exit to Materials (range 15) 4001 | -9/Mines | Found the Drone Emporium 4014 | -9/Mines | Found Prototype Device 4119 | -9/Mines | Build established: Mutant 4158 | -9/Mines | A weapon hastily lodged in a ceiling crevice suddenly fell to the ground 5198 | -9/Mines | Identified Sensor Drone Bay 5226 | -9/Mines | Identified Exp. Sensor Array 5412 | -9/Mines | Entered Materials 5412 | -8/Materials | Evolved 4 slots: Propulsion x1, Utility x3 5738 | -8/Materials | Self-destructed Last Messages --------------- 05692_ K-01 Serf collects debris. 05695_ S-10 Pest destroyed. 05700_ K-01 Serf collects debris. 05701_ S-10 Pest destroyed. 05704_ T-07 Excavator is excavating. 05706_ K-01 Serf collects debris. 05712_ Com. Wheel destroyed. 05714_ K-01 Serf collects debris. 05715_ Wheel destroyed. 05716_ Destroyed Imp. Hover Unit. 05716_ K-01 Serf collects debris. 05718_ Electrolaser destroyed. 05721_ System Shield destroyed. 05721_ K-01 Serf collects debris. 05721_ U-05 Engineer destroyed. 05726_ K-01 Serf collects debris. 05730_ Lgt. Nuclear Core destroyed. 05732_ K-01 Serf collects debris. 05736_ Electrolaser destroyed. 05737_ K-01 Serf collects debris. Map ----- +----------------------------------------------------+ | ???????????????????????????????# [+[ #??# #? | | ???????????????????????????????##########+##### #? | | ????????????????????????????????????# % # #? | | ????????????????????????????????????# """ # #? | | ????????????????????????????????????# "R" # #? | | ????????????????????????????????????#[! " " # #? | | ????????????????????????????????????#![ # #? | | ????????????????????????????????????#![ # #? | | ????????????????????????????????????# %* # #? | | ????????????????????????????????????# # #? | | ????????????????????????????????????##+##+##### #? | | ?????????????????????????????######### #???# #? | | ??????????g??????????????????# # ##### #? | | ?????????l???????????????????# "T"%+*w #? | | ?????????????????????????????# [#% ##### #? | | ???????????###+#######################* #???# #? | | ????????? == #?### ## | | ????????? *%% #?# | | ????????? == g #?# | | ????????????##### ## ##### ######+### | | ????????????????# ## #???# # ## | | ????????????????#!!]]/ ## #???# # """"" ## | | ????????????????#!!]] ## #???# + """"" ####+## | | ????????????????######### =#???# # """"" # | | ????????????????????????#!!#???# # # | | ????????????????????????#@k#???# ####+#### """ | | ?a??????????????????????#!=######+##### #??# """ | | ????????????????????????#%=# ## #??# """ | | ????????????????????????#*!# ## #??# | | ????????????????????????#%=#?????????????????????? | | ?????????????Y??????????#=%#?????????????????????? | | ????????????????????????# |#?????????????????????? | | ????????????????????????# #?????????????????????? | | ????????????????????????# #?????????????????????? | | ????????????????????????#= #?????????????????????? | | ????????????????????????#%Y#?????????????????????? | | ???????????????????????? = ?????????????????????? | | ????????????????????????#% ?????????????????????? | | ?????????????????????????= ?????????????????????? | | ????????????????????????? ?????????????????????? | | ????????????????????????? ?????????????????????? | | ????????????????????????? ?????????????????????? | | ?????????????????????????????????????????????????? | | ?????????????????????????????????????????????????? | | ?????????????????????????????????????????????????? | | ?????????????????????????????????????????????????? | | ?????????????????????????????????????????????????? | | ?????????????????????????????????????????????????? | | ?????????????????????????????????????????????????? | | ?????????????????????????????????????????????????? | +----------------------------------------------------+ Best States ------------- Heat Dissipation 31 Energy Generation 14 Energy Capacity 250 Matter Stores 300 Matter Capacity 300 Sight Range 16 Robot Scan Range 30 Terrain Scan Range 16 Terrain Scan Density 60 Reclamation Efficiency 10 Evasion (%) 44 Offensive Hacking 10 Defensive Hacking 10 Item Schematics ----------------- None Robot Schematics ------------------ None Fabricated ------------ Nothing Alien Tech Used ----------------- None Achievements -------------- None Challenges ------------ None Game ------ Seed AlertAntimissileAutohacker Manual? 0 Play Time 01:09:37 Cumulative 164.6 hours Start 2020.11.10 @ 20:25:33 End 2020.11.10 @ 21:31:25 Sessions 1 Manual Loads 0 Difficulty Rogue Special Mode Halloween2020/ForbiddenLore Game No. 62 Rogue 62 Adventurer 0 Explorer 0 Win Type - Total 0 Types 0/0/0/0/0/0/0/0/0 Lore% 21 Gallery% 24 Achievement% 21 Wizard Run 0 Options --------- ASCII 0 Keyboard 1 Movement Vi Keybinds 0 Fullscreen 1 Font 12/Terminus Map View 83x54 Tactical HUD 1 Map Filters NONE Filters NONE Steam 1 RUN: cbf58696-355b-4fe9-975f-216365f57d01